bitfinex-derivatives/quotes_BTCF0:USTF0_20241214
["timestamp","ask_amount","ask_price","bid_price","bid_amount"]
[1734180826437,0.31426412,101340.0,101330.0,1.62077672]
[1734180827432,0.31426412,101340.0,101330.0,1.62027672]
[1734180828531,0.31426412,101340.0,101330.0,1.62077672]
[1734180832039,0.19658887,101340.0,101330.0,1.62077672]
[1734180832232,0.31427152,101340.0,101330.0,1.62077672]
[1734180832628,0.19658887,101340.0,101330.0,1.62077672]
[1734180832840,0.14725687,101340.0,101330.0,2.0428658]
[1734180833147,0.20596299,101340.0,101330.0,2.27956056]
[1734180833342,0.08827179,101340.0,101330.0,2.27956056]
[1734180837443,0.20596299,101350.0,101340.0,0.049332]
[1734180837640,0.1176912,101350.0,101340.0,0.65951016]
[1734180838846,0.26494807,101350.0,101340.0,0.65951016]
[1734180839848,0.1176912,101350.0,101340.0,0.65951016]
[1734180840050,0.26494807,101350.0,101340.0,0.59822108]
[1734180840438,0.26544807,101350.0,101340.0,0.59822108]
[1734180841847,0.14775687,101350.0,101340.0,0.59822108]
[1734180842150,0.14775687,101350.0,101340.0,0.65951016]
[1734180842656,0.14725687,101350.0,101340.0,0.65951016]
[1734180843155,0.14725687,101350.0,101340.0,0.59822108]
[1734180843452,0.14775687,101350.0,101340.0,0.59822108]
[1734180844152,0.14775687,101350.0,101340.0,0.65951016]
[1734180846749,0.265573,101350.0,101340.0,0.65951016]
[1734180846952,0.14775687,101350.0,101340.0,0.65951016]
[1734180847350,0.14775687,101350.0,101340.0,0.29871016]
[1734180847551,0.26557125,101350.0,101340.0,0.65951016]
[1734180849446,0.26557125,101350.0,101340.0,2.39620492]
[1734180849653,0.11831438,101350.0,101340.0,2.15951016]
[1734180849954,0.11831438,101350.0,101340.0,2.39620492]
[1734180850458,0.26557125,101350.0,101340.0,2.15951016]
[1734180850848,0.11831438,101350.0,101340.0,2.39620492]
[1734180851048,0.11831438,101350.0,101340.0,2.15951016]
[1734180851456,0.11831438,101350.0,101340.0,2.036932]
[1734180851659,0.11831438,101350.0,101340.0,2.39620492]
[1734180852255,0.26557125,101350.0,101340.0,2.33491584]
[1734180852455,0.26507125,101350.0,101340.0,2.33491584]
[1734180853267,0.26507125,101350.0,101340.0,1.97411584]
[1734180853556,0.26507125,101350.0,101340.0,2.39620492]
[1734180854664,0.26507125,101350.0,101340.0,2.33491584]
[1734180855065,0.26507125,101350.0,101340.0,2.39620492]
[1734180855469,0.25787295,101350.0,101340.0,0.049332]
[1734180855767,0.29827295,101350.0,101340.0,0.049332]
[1734180856164,0.68867184,101350.0,101340.0,0.049332]
[1734180858179,0.049332,101340.0,101330.0,1.55948764]
[1734180858382,0.34132207,101340.0,101330.0,1.55948764]
[1734180858570,0.51817783,101340.0,101330.0,0.05898764]
[1734180858767,0.37087684,101340.0,101330.0,0.10216891]
[1734180859177,0.51817484,101340.0,101330.0,0.10216891]
[1734180859576,0.51817484,101340.0,101330.0,0.05948764]
[1734180860583,0.51817484,101340.0,101330.0,0.05898764]
[1734180860972,0.51817484,101340.0,101330.0,0.12027672]
[1734180861172,0.45688576,101340.0,101330.0,0.12027672]
[1734180861579,0.45688576,101340.0,101330.0,0.11119553]
[1734180862467,0.45688576,101340.0,101330.0,0.11069553]
[1734180863580,0.45688576,101340.0,101330.0,0.11119553]
[1734180864576,0.45688576,101340.0,101330.0,0.11069553]
[1734180865480,0.45688576,101340.0,101330.0,0.11119553]
[1734180865873,0.230698,101340.0,101330.0,0.11119553]
[1734180866072,0.230698,101340.0,101330.0,0.04990645]
[1734180866280,0.34131908,101340.0,101330.0,0.04990645]
[1734180866476,0.34131908,101340.0,101330.0,0.11069553]
[1734180866681,0.28003,101340.0,101330.0,0.11069553]
[1734180867180,0.34131908,101340.0,101330.0,0.04940645]
[1734180867481,0.34131908,101340.0,101330.0,0.04990645]
[1734180871584,0.34131908,101340.0,101330.0,0.04940645]
[1734180871879,0.28003,101340.0,101330.0,0.11069553]
[1734180875282,0.34131908,101340.0,101330.0,0.04940645]
[1734180876088,0.34131908,101340.0,101330.0,0.11069553]
[1734180876478,0.28003,101340.0,101330.0,0.11069553]
[1734180880485,0.45688576,101340.0,101330.0,0.11069553]
[1734180881488,0.30958776,101340.0,101330.0,0.11069553]
[1734180881889,0.37087684,101340.0,101330.0,0.04940645]
[1734180882091,0.37087684,101340.0,101330.0,7.145e-05]
[1734180884593,0.73167684,101340.0,101330.0,7.145e-05]
[1734180884788,0.79296592,101340.0,101330.0,7.145e-05]
[1734180884989,0.82208232,101340.0,101320.0,0.0005]
[1734180885286,0.82208232,101340.0,101320.0,0.04368635]
[1734180885287,0.57059134,101330.0,101320.0,0.04368635]
[1734180885487,0.51392608,101330.0,101310.0,0.83582884]
[1734180885793,0.37374711,101320.0,101310.0,0.87901678]
[1734180886085,0.37381856,101320.0,101310.0,0.87901678]
[1734180886486,0.19687032,101320.0,101310.0,0.87901678]
[1734180886681,0.19687032,101320.0,101310.0,0.8177277]
[1734180886886,0.19687032,101320.0,101310.0,0.88891871]
[1734180887886,0.19687032,101320.0,101310.0,0.71803077]
[1734180888485,0.19687032,101320.0,101310.0,0.48133601]
[1734180889598,0.19687032,101320.0,101310.0,0.48183601]
[1734180890100,0.2581594,101320.0,101310.0,0.410645]
[1734180890301,0.43510764,101320.0,101310.0,0.0930329]
[1734180890492,0.79590764,101320.0,101310.0,0.0436879]
[1734180890998,0.79473985,101320.0,101310.0,0.0436879]
[1734180891197,0.79473985,101320.0,101310.0,0.0005]
[1734180891494,0.91779161,101320.0,101310.0,0.0005]
[1734180891694,1.12376377,101320.0,101310.0,0.0005]
[1734180891893,0.82376377,101320.0,101310.0,0.0005]
[1734180892099,0.61779161,101320.0,101310.0,0.0005]
[1734180892792,0.62754373,101320.0,101310.0,0.0005]
[1734180893200,0.56625465,101320.0,101310.0,0.0005]
[1734180893587,0.74281964,101320.0,101310.0,0.0005]
[1734180900099,0.71324914,101320.0,101310.0,0.0005]
[1734180900694,0.65196006,101320.0,101310.0,0.0005]
[1734180900892,0.81877587,101320.0,101310.0,0.0005]
[1734180901298,0.88006495,101320.0,101310.0,0.0005]
[1734180905103,0.55721088,101320.0,101310.0,0.06178908]
[1734180905899,0.73377587,101320.0,101310.0,0.06178908]
[1734180906095,0.73377587,101320.0,101310.0,0.11113608]
[1734180906303,0.61849996,101320.0,101310.0,0.049847]
[1734180907606,0.049347,101310.0,101300.0,0.232751]
[1734180907913,0.47143608,101310.0,101300.0,0.190751]
[1734180908101,0.410147,101310.0,101300.0,0.25204008]
[1734180908511,0.410147,101310.0,101300.0,0.25254008]
[1734180909206,0.55714443,101310.0,101300.0,0.25254008]
[1734180909604,0.55714443,101310.0,101300.0,0.25204008]
[1734180910506,0.55714443,101310.0,101300.0,0.25254008]
[1734180911206,0.61843351,101310.0,101300.0,0.1005]
[1734180911407,0.70243351,101310.0,101300.0,0.1005]
[1734180911607,0.74353351,101310.0,101300.0,0.1]
[1734180911803,0.68224443,101310.0,101300.0,0.1]
[1734180912010,0.68224443,101310.0,101300.0,0.21064108]
[1734180912607,0.68224443,101310.0,101300.0,0.21114108]
[1734180913009,0.55714443,101310.0,101300.0,0.21114108]
[1734180913715,0.55714443,101310.0,101300.0,0.21064108]
[1734180913917,0.55714443,101310.0,101300.0,0.24994108]
[1734180914513,0.410147,101310.0,101300.0,0.25044108]
[1734180914813,0.58671199,101310.0,101300.0,0.25044108]
[1734180915019,0.73401322,101310.0,101300.0,0.32964108]
[1734180915713,0.73401322,101310.0,101300.0,0.32914108]
[1734180916513,0.73401322,101310.0,101300.0,0.32964108]
[1734180917413,0.58671199,101310.0,101300.0,0.32964108]
[1734180917615,0.58671199,101310.0,101300.0,0.32914108]
[1734180918721,0.58671199,101310.0,101300.0,0.32964108]
[1734180920521,0.58671199,101310.0,101300.0,0.37283541]
[1734180925126,0.58671199,101310.0,101300.0,0.50504676]
[1734180925424,0.58671199,101310.0,101300.0,0.56633584]
[1734180925821,0.58671199,101310.0,101300.0,0.60953002]
[1734180927220,0.58671199,101310.0,101300.0,0.6708191]
[1734180927524,0.58671199,101310.0,101300.0,0.62762492]
[1734180928022,0.58671199,101310.0,101300.0,1.03161886]
[1734180928023,0.17656499,101310.0,101300.0,1.03161886]
[1734180928219,0.17656499,101310.0,101300.0,1.03161698]
[1734180928424,0.32408507,101310.0,101300.0,1.03161698]
[1734180928616,0.00057145,101320.0,101310.0,0.049347]
[1734180928819,0.17656499,101330.0,101320.0,0.049342]
[1734180929129,0.27388049,101330.0,101320.0,1.99299542]
[1734180929316,0.22590299,101330.0,101320.0,1.99081086]
[1734180929514,0.049338,101330.0,101320.0,2.16839833]
[1734180929823,0.53736499,101340.0,101330.0,0.049338]
[1734180929824,0.17656499,101340.0,101330.0,0.049338]
[1734180930122,0.22453885,101340.0,101330.0,0.28806052]
[1734180930627,0.77248607,101350.0,101340.0,0.049333]
[1734180930819,0.77248607,101350.0,101340.0,0.11062208]
[1734180932627,0.71119699,101350.0,101340.0,0.06128908]
[1734180932925,0.71119699,101350.0,101340.0,0.11062208]
[1734180933314,0.66949699,101350.0,101340.0,0.17191116]
[1734180933513,0.3608,101350.0,101340.0,0.17191116]
[1734180933925,0.47851195,101350.0,101340.0,0.21501116]
[1734180934729,0.47901195,101350.0,101340.0,0.19412208]
[1734180935527,0.47901195,101350.0,101340.0,1.69412208]
[1734180935730,0.47901195,101350.0,101340.0,0.19412208]
[1734180936230,0.47901195,101350.0,101340.0,1.69412208]
[1734180936418,0.47901195,101350.0,101340.0,0.19412208]
[1734180936623,0.61652217,101350.0,101340.0,0.19412208]
[1734180936822,0.61652217,101350.0,101340.0,0.15372208]
[1734180937022,0.58962903,101350.0,101340.0,0.11062208]
[1734180937227,0.71102903,101350.0,101340.0,0.11062208]
[1734180937427,0.64973995,101350.0,101340.0,0.11062208]
[1734180937629,0.79921019,101350.0,101340.0,0.049333]
[1734180938035,0.71102903,101350.0,101340.0,0.049333]
[1734180938633,0.79917594,101350.0,101340.0,0.049333]
[1734180939136,0.71102903,101350.0,101340.0,0.049333]
[1734180939330,0.71102903,101350.0,101340.0,0.11062208]
[1734180939722,0.71102903,101350.0,101340.0,0.049333]
[1734180941523,0.71102903,101350.0,101330.0,0.07118934]
[1734180941729,0.20744758,101340.0,101330.0,0.05923726]
[1734180942033,0.67725814,101340.0,101330.0,0.05923726]
[1734180942229,0.67725814,101340.0,101330.0,0.049337]
[1734180942430,0.58913503,101340.0,101330.0,0.049337]
[1734180942629,0.049339,101330.0,101320.0,0.049339]
[1734180942936,0.13745832,101330.0,101320.0,0.11062808]
[1734180945130,0.13745832,101330.0,101320.0,0.12028426]
[1734180947339,0.22195832,101330.0,101320.0,0.12028426]
[1734180947539,0.33967027,101330.0,101320.0,0.12028426]
[1734180947936,0.22195832,101330.0,101320.0,0.12028426]
[1734180948134,0.33967027,101330.0,101320.0,0.11062808]
[1734180948335,0.37897027,101330.0,101320.0,0.11062808]
[1734180950638,0.44025935,101330.0,101320.0,0.049339]
[1734180950939,0.37897027,101330.0,101320.0,0.11062808]
[1734180951540,0.37897027,101330.0,101320.0,0.11112808]
[1734180952941,0.29085095,101330.0,101320.0,0.11112808]
[1734180956738,0.16705095,101330.0,101320.0,0.11112808]
[1734180957635,0.16705095,101330.0,101320.0,0.28856152]
[1734180958640,0.19664063,101330.0,101320.0,0.28856152]
[1734180961553,0.19664063,101330.0,101320.0,0.33174604]
[1734180961749,0.19664063,101330.0,101320.0,0.33174603]
[1734180964950,0.19664063,101330.0,101320.0,0.27045695]
[1734180965153,0.19664063,101330.0,101320.0,0.33174603]
[1734180965868,0.19664063,101330.0,101320.0,0.27045695]
[1734180967168,0.14730163,101330.0,101320.0,0.33174603]
[1734180967575,0.14730163,101330.0,101320.0,0.64973673]
[1734180968371,0.14730163,101330.0,101320.0,0.60655222]
[1734180968573,0.14730163,101330.0,101320.0,0.60605222]
[1734180968768,0.14730163,101330.0,101320.0,0.54476314]
[1734180968970,0.14730163,101330.0,101320.0,0.60605222]
[1734180969470,0.32386662,101330.0,101320.0,0.64923649]
[1734180969676,0.14730163,101330.0,101320.0,0.64923649]
[1734180970469,0.32386662,101330.0,101320.0,0.64923649]
[1734180971468,0.17656499,101330.0,101320.0,0.47180305]
[1734180973977,0.22454121,101330.0,101320.0,0.47180305]
[1734180974175,0.17656499,101330.0,101320.0,0.47180305]
[1734180976076,0.22454123,101330.0,101320.0,0.47180305]
[1734180976674,0.17656499,101330.0,101320.0,0.47180305]
[1734180978576,0.32414111,101330.0,101320.0,0.47180305]
[1734180979580,0.32414061,101330.0,101320.0,0.47180305]
[1734180979980,0.17656499,101330.0,101320.0,0.47180305]
[1734180980376,0.22590199,101330.0,101320.0,0.47180305]
[1734180981080,0.22590199,101330.0,101320.0,0.39060305]
[1734180982279,0.37348058,101330.0,101320.0,0.39060305]
[1734180982477,0.22590199,101330.0,101320.0,0.39060305]
[1734180985277,0.22590199,101330.0,101320.0,0.2861297]
[1734180985473,0.28719107,101330.0,101320.0,0.2861297]
[1734180985879,0.28719107,101330.0,101320.0,0.46378009]
[1734180986177,0.64799107,101330.0,101320.0,0.45762766]
[1734180986370,0.53271516,101330.0,101320.0,0.17765039]
[1734180986576,0.049342,101320.0,101310.0,0.42420241]
[1734180986879,0.88155956,101320.0,101310.0,0.41444109]
[1734180987076,0.65652016,101320.0,101310.0,0.17765039]
[1734180987273,0.83342881,101320.0,101300.0,0.51444109]
[1734180987579,0.65742673,101310.0,101300.0,0.1]
[1734180987777,0.64834467,101310.0,101300.0,0.27765039]
[1734180987973,0.64834467,101310.0,101300.0,0.1]
[1734180989376,0.53272516,101310.0,101300.0,0.1]
[1734180989577,0.049353,101300.0,101280.0,2.46768708]
[1734180989785,0.21516327,101290.0,101280.0,2.33323514]
[1734180989972,0.20609799,101290.0,101280.0,2.33323514]
[1734180990170,0.20609799,101290.0,101280.0,2.27194606]
[1734180990171,0.08832771,101290.0,101280.0,2.27194606]
[1734180990875,0.08832771,101290.0,101280.0,2.44916408]
[1734180991077,0.20609799,101290.0,101280.0,2.57174224]
[1734180991277,0.20609799,101290.0,101280.0,2.09809367]
[1734180991579,0.20609799,101290.0,101280.0,1.92259205]
[1734180991781,0.08832771,101290.0,101280.0,2.4769843]
[1734180991983,0.08832771,101290.0,101280.0,2.58147215]
[1734180992277,0.08832771,101290.0,101280.0,2.45889399]
[1734180992479,0.25545099,101300.0,101290.0,0.049357]
[1734180992785,0.25545099,101300.0,101290.0,0.51304608]
[1734180992984,0.20609799,101300.0,101290.0,0.55624242]
[1734180993278,0.20609799,101300.0,101290.0,0.13415334]
[1734180993475,0.20609799,101300.0,101290.0,1.69544242]
[1734180993878,0.31673907,101300.0,101290.0,0.13415334]
[1734180994081,0.25544999,101300.0,101290.0,0.55624242]
[1734180994277,0.25544999,101300.0,101290.0,0.49495334]
[1734180994577,0.08832771,101300.0,101290.0,2.05624264]
[1734180995378,0.08832771,101300.0,101290.0,2.23346066]
[1734180995779,0.08832771,101300.0,101290.0,2.05624264]
[1734180996978,0.08832771,101300.0,101290.0,2.23346066]
[1734180997179,0.25544599,101310.0,101290.0,2.23346066]
[1734180997487,0.25544599,101310.0,101300.0,0.06128908]
[1734180997685,0.25544599,101310.0,101300.0,0.47144108]
[1734180997896,0.25544599,101310.0,101300.0,0.11064108]
[1734180998185,0.25532087,101310.0,101300.0,0.11064108]
[1734180998784,0.25532141,101310.0,101300.0,0.11064108]
[1734181000582,0.25532141,101310.0,101300.0,0.15383458]
[1734181000583,0.20597341,101310.0,101300.0,0.15383458]
[1734181001181,0.20597341,101310.0,101300.0,0.11064108]
[1734181002389,0.20597341,101310.0,101300.0,0.04116108]
[1734181002588,0.049357,101290.0,101270.0,0.17699376]
[1734181002886,0.049367,101270.0,101260.0,0.11066008]
[1734181003088,0.52773882,101270.0,101260.0,0.11066008]
[1734181003287,0.11757182,101270.0,101260.0,0.50379668]
[1734181003588,0.20578797,101270.0,101260.0,0.67160749]
[1734181003891,0.08821615,101270.0,101260.0,0.67160749]
[1734181004289,9.523e-05,101270.0,101260.0,0.67160749]
[1734181005588,0.49838315,101270.0,101260.0,0.09258181]
[1734181005889,0.13758315,101270.0,101260.0,0.049371]
[1734181006091,0.13758315,101270.0,101260.0,0.09258203]
[1734181006277,0.13758315,101270.0,101260.0,0.049371]
[1734181006683,0.04946223,101270.0,101260.0,0.410171]
[1734181007284,0.04946223,101270.0,101260.0,0.049371]
[1734181007591,0.04946223,101270.0,101260.0,0.410171]
[1734181007782,9.523e-05,101270.0,101260.0,0.410171]
[1734181008591,9.523e-05,101270.0,101260.0,0.45337761]
[1734181008791,9.523e-05,101270.0,101260.0,0.54700329]
[1734181009696,9.523e-05,101270.0,101260.0,0.50429668]
[1734181011289,9.523e-05,101270.0,101260.0,0.54750329]
[1734181011500,9.523e-05,101270.0,101260.0,2.04750329]
[1734181013686,9.523e-05,101270.0,101260.0,2.00429668]
[1734181014299,9.523e-05,101270.0,101260.0,2.04750277]
[1734181014895,0.04946223,101270.0,101260.0,1.95387709]
[1734181015297,0.13758315,101270.0,101260.0,1.95387709]
[1734181015598,0.13758315,101270.0,101260.0,2.04750277]
[1734181015791,0.04946223,101270.0,101260.0,2.04750277]
[1734181016192,0.04946223,101270.0,101260.0,1.95387709]
[1734181016193,0.13758315,101270.0,101260.0,1.95387709]
[1734181016401,0.13758315,101270.0,101260.0,2.04750277]
[1734181017194,0.08821615,101270.0,101260.0,2.04750277]
[1734181017995,0.08821615,101270.0,101260.0,2.00429668]
[1734181019497,0.08821615,101270.0,101260.0,2.24108738]
[1734181020609,9.523e-05,101270.0,101260.0,2.04750277]
[1734181023205,9.523e-05,101270.0,101260.0,2.07672805]
[1734181025898,9.523e-05,101270.0,101260.0,2.01530257]
[1734181026297,9.523e-05,101270.0,101260.0,2.25128673]
[1734181027301,0.04946223,101270.0,101260.0,0.68986125]
[1734181027605,0.04946223,101270.0,101260.0,0.75128673]
[1734181027805,0.13762169,101270.0,101260.0,0.51530257]
[1734181028301,0.25516764,101270.0,101260.0,0.51530257]
[1734181029700,0.25516764,101270.0,101260.0,0.51480257]
[1734181030311,0.25516764,101270.0,101260.0,0.75078673]
[1734181031113,0.20580064,101270.0,101260.0,0.75078673]
[1734181031309,0.11764118,101270.0,101260.0,0.81221221]
[1734181031610,0.08844983,101270.0,101260.0,1.10159673]
[1734181032301,0.20599578,101270.0,101260.0,1.45557298]
[1734181032507,0.08844983,101270.0,101260.0,1.45557298]
[1734181033215,0.20599578,101270.0,101260.0,1.45557298]
[1734181033407,0.08844983,101270.0,101260.0,1.45557298]
[1734181033607,0.08844983,101270.0,101260.0,1.16059277]
[1734181034912,0.0642828,101270.0,101260.0,1.22201825]
[1734181035112,0.11754595,101280.0,101270.0,0.049367]
[1734181035410,0.23736106,101290.0,101280.0,0.049362]
[1734181035613,0.23736106,101290.0,101280.0,0.3906351]
[1734181035802,0.14693243,101290.0,101280.0,0.32920962]
[1734181036003,0.41210835,101290.0,101280.0,0.15399357]
[1734181036608,0.23578943,101290.0,101280.0,0.3906351]
[1734181037713,0.19628943,101290.0,101280.0,0.81286058]
[1734181038305,0.19628943,101290.0,101280.0,0.7514351]
[1734181038511,0.19628943,101290.0,101280.0,0.3906351]
[1734181039016,0.19628943,101290.0,101280.0,0.34742901]
[1734181039209,0.19628943,101290.0,101280.0,0.28600353]
[1734181039712,0.19678943,101290.0,101280.0,0.28600353]
[1734181039909,0.14743243,101290.0,101280.0,0.50375168]
[1734181040122,0.14743243,101290.0,101280.0,0.74039321]
[1734181041320,0.14743243,101290.0,101280.0,0.75014921]
[1734181041819,0.0005,101290.0,101280.0,0.84373889]
[1734181042207,0.0005,101290.0,101280.0,0.60709736]
[1734181042406,0.0005,101290.0,101280.0,2.34355075]
[1734181042802,0.0005,101290.0,101280.0,2.40298485]
[1734181043406,0.18831358,101320.0,101280.0,2.70298485]
[1734181043710,0.18831358,101320.0,101310.0,0.14293768]
[1734181044027,0.14841358,101320.0,101310.0,0.50373768]
[1734181044311,0.00148115,101320.0,101310.0,0.54443768]
[1734181044504,0.00148115,101320.0,101310.0,0.58273768]
[1734181046613,0.18743243,101340.0,101330.0,0.049338]
[1734181046817,0.0405,101340.0,101330.0,0.049338]
[1734181047009,0.58863243,101350.0,101340.0,0.049333]
[1734181047516,0.4417,101350.0,101340.0,0.049333]
[1734181049207,0.0809,101350.0,101340.0,0.410133]
[1734181049409,0.23555643,101360.0,101340.0,0.410133]
[1734181049608,0.0776,101360.0,101350.0,0.14291968]
[1734181050112,0.0776,101360.0,101350.0,0.04933]
[1734181051819,0.0393,101360.0,101350.0,0.04933]
[1734181052014,0.0393,101360.0,101350.0,0.14291968]
[1734181052311,0.0393,101360.0,101350.0,0.50371968]
[1734181052518,0.0393,101360.0,101350.0,2.00371968]
[1734181053014,0.44158062,101370.0,101350.0,2.00371968]
[1734181053211,0.08078062,101370.0,101360.0,0.14291168]
[1734181054526,0.08078062,101370.0,101360.0,0.049322]
[1734181054816,0.049328,101350.0,101330.0,0.50372568]
[1734181055115,0.410128,101350.0,101330.0,0.50372568]
[1734181055315,0.077,101340.0,101330.0,0.50372568]
[1734181055615,0.077,101340.0,101330.0,0.410136]
[1734181058819,0.487132,101340.0,101330.0,0.049336]
[1734181059019,0.487132,101340.0,101320.0,0.41990918]
[1734181059215,0.58072168,101340.0,101320.0,0.41990918]
[1734181060619,0.58072168,101340.0,101330.0,0.049337]
[1734181060920,0.487132,101340.0,101330.0,0.049337]
[1734181062030,0.049337,101330.0,101320.0,0.41990818]
[1734181063316,0.487134,101340.0,101330.0,0.049337]
[1734181063516,0.63406643,101340.0,101330.0,0.049337]
[1734181063719,0.487134,101340.0,101330.0,0.049337]
[1734181063919,0.487134,101340.0,101330.0,1.549337]
[1734181064316,0.63406643,101340.0,101330.0,1.549337]
[1734181064522,0.126334,101340.0,101330.0,1.549337]
[1734181064819,0.049334,101340.0,101330.0,1.64292668]
[1734181065126,0.049334,101340.0,101330.0,1.549337]
[1734181066527,0.049334,101340.0,101330.0,0.049337]
[1734181067617,0.59626043,101350.0,101340.0,0.049332]
[1734181069118,0.59626043,101350.0,101340.0,0.087732]
[1734181069321,0.55706043,101350.0,101340.0,0.087732]
[1734181070723,0.55756043,101350.0,101340.0,0.087732]
[1734181071330,0.55756043,101350.0,101340.0,0.18132168]
[1734181071624,0.50823243,101350.0,101340.0,0.128532]
[1734181071828,0.55705943,101350.0,101340.0,0.128532]
[1734181072230,0.68405135,101350.0,101340.0,0.22212168]
[1734181072434,0.53711892,101350.0,101340.0,0.22212168]
[1734181072630,0.68418078,101350.0,101340.0,0.22212168]
[1734181072822,0.68468078,101350.0,101340.0,0.22212168]
[1734181073422,0.53761892,101350.0,101340.0,0.22212168]
[1734181073624,0.1476174,101350.0,101340.0,0.58292168]
[1734181073816,0.1471174,101350.0,101340.0,0.58292168]
[1734181074223,0.1471174,101350.0,101340.0,2.08292168]
[1734181076018,0.1471174,101350.0,101340.0,0.58292168]
[1734181076224,0.50371668,101350.0,101330.0,0.32533181]
[1734181076540,0.05805888,101340.0,101330.0,0.049836]
[1734181076739,0.049332,101340.0,101330.0,0.049836]
[1734181077038,0.1964494,101340.0,101330.0,0.410636]
[1734181077427,0.049332,101340.0,101330.0,0.410636]
[1734181077828,0.1964494,101340.0,101330.0,0.410636]
[1734181080129,0.1964494,101340.0,101330.0,0.049836]
[1734181080433,0.1964494,101340.0,101330.0,0.410636]
[1734181080823,0.1964494,101340.0,101330.0,0.3613]
[1734181081628,0.1964494,101340.0,101330.0,0.0005]
[1734181082022,0.37276832,101340.0,101330.0,1.5005]
[1734181082829,0.37276832,101340.0,101330.0,1.549837]
[1734181083534,0.37289383,101340.0,101330.0,1.549837]
[1734181083734,0.22565092,101340.0,101330.0,1.549837]
[1734181084725,0.22565092,101340.0,101330.0,1.549337]
[1734181087821,0.37296289,101340.0,101330.0,1.549337]
[1734181088021,0.37296289,101340.0,101330.0,1.910137]
[1734181089529,0.19664397,101340.0,101330.0,1.910137]
[1734181090028,0.37296289,101340.0,101330.0,1.910137]
[1734181090234,0.19664397,101340.0,101330.0,1.910137]
[1734181091327,0.19664397,101340.0,101330.0,1.549337]
[1734181091523,0.37296289,101340.0,101330.0,1.549337]
[1734181091723,0.37296289,101340.0,101330.0,1.5]
[1734181091924,0.3192406,101340.0,101330.0,1.5]
[1734181092131,0.77363028,101340.0,101320.0,0.37106818]
[1734181092339,0.32975861,101330.0,101320.0,0.3613]
[1734181092524,0.37195861,101330.0,101320.0,0.3613]
[1734181092732,0.37195861,101330.0,101320.0,0.410142]
[1734181092930,0.54827753,101330.0,101320.0,0.410142]
[1734181093131,0.45468785,101330.0,101320.0,0.410142]
[1734181093323,0.54827753,101330.0,101320.0,0.410142]
[1734181093724,0.54827753,101330.0,101320.0,0.410642]
[1734181094439,0.37195861,101330.0,101320.0,0.410642]
[1734181094830,0.37195861,101330.0,101320.0,0.410142]
[1734181095833,0.37195861,101330.0,101320.0,0.410642]
[1734181096632,0.73275861,101330.0,101320.0,0.0005]
[1734181096827,0.049342,101320.0,101310.0,2.19739741]
[1734181097036,0.31452705,101320.0,101310.0,2.19928382]
[1734181097236,0.31452705,101320.0,101310.0,1.9198016]
[1734181097539,0.40811673,101320.0,101310.0,0.4198016]
[1734181098038,0.40811673,101320.0,101310.0,1.9198016]
[1734181099335,0.40811673,101320.0,101310.0,1.96298885]
[1734181099539,0.31452705,101320.0,101310.0,1.96298885]
[1734181099737,0.16720202,101320.0,101310.0,1.96348885]
[1734181100040,0.16720202,101320.0,101310.0,2.00508885]
[1734181101436,0.16720202,101320.0,101310.0,1.9619016]
[1734181104235,0.16720202,101320.0,101310.0,2.00508863]
[1734181104444,0.16720202,101320.0,101310.0,1.9619016]
[1734181104655,0.2607917,101320.0,101310.0,1.9619016]
[1734181104840,0.2607917,101320.0,101310.0,1.9203016]
[1734181105039,0.2607917,101320.0,101310.0,0.4203016]
[1734181105648,0.2607917,101320.0,101310.0,0.46348873]
[1734181106544,0.2607917,101320.0,101310.0,0.3709556]
[1734181107341,0.40811673,101320.0,101310.0,0.3709556]
[1734181108942,0.2607917,101320.0,101310.0,0.3613]
[1734181109142,0.40811673,101320.0,101310.0,0.40448725]
[1734181110146,0.29025671,101320.0,101310.0,0.3613]
[1734181110740,0.65105671,101320.0,101310.0,0.0005]
[1734181111343,0.6800506,101320.0,101310.0,0.0005]
[1734181111534,0.7200506,101320.0,101310.0,0.0005]
[1734181113947,0.6707086,101320.0,101300.0,0.08169243]
[1734181114135,0.29013785,101310.0,101300.0,0.08169243]
[1734181114846,0.29013785,101310.0,101300.0,0.13104443]
[1734181115045,0.29022422,101310.0,101300.0,0.13104443]
[1734181115949,0.29022422,101310.0,101300.0,0.12956393]
[1734181117953,0.65102422,101310.0,101300.0,0.13006393]
[1734181118548,0.29022422,101310.0,101300.0,0.13006393]
[1734181118752,0.29022422,101310.0,101300.0,0.12956393]
[1734181119054,0.65102422,101310.0,101300.0,0.12956393]
[1734181119456,0.29022422,101310.0,101300.0,0.12956393]
[1734181119755,0.65102422,101310.0,101300.0,0.13006393]
[1734181120146,0.29022422,101310.0,101300.0,0.13006393]
[1734181120451,0.46654314,101310.0,101300.0,0.13006393]
[1734181120644,0.82734314,101310.0,101300.0,0.13006393]
[1734181120846,0.82734314,101310.0,101300.0,0.12956393]
[1734181121544,0.46654314,101310.0,101300.0,0.04936393]
[1734181121746,0.86984314,101310.0,101300.0,0.04986393]
[1734181122355,0.50904314,101310.0,101300.0,0.04986393]
[1734181122756,0.50904314,101310.0,101300.0,1.193e-05]
[1734181122950,0.86984314,101310.0,101300.0,1.193e-05]
[1734181123550,0.69352422,101310.0,101300.0,1.193e-05]
[1734181123751,0.50904314,101310.0,101300.0,0.04986393]
[1734181124056,0.33272422,101310.0,101300.0,0.04986393]
[1734181124958,0.33272422,101310.0,101300.0,0.04936393]
[1734181125154,0.30054481,101310.0,101300.0,0.04936393]
[1734181125355,0.47686373,101310.0,101300.0,0.04936393]
[1734181125762,0.83766373,101310.0,101300.0,0.04986393]
[1734181126853,0.47686373,101310.0,101300.0,0.04936393]
[1734181127054,0.83766373,101310.0,101300.0,0.04936393]
[1734181127859,0.83766373,101310.0,101300.0,0.04986393]
[1734181128061,0.25804481,101310.0,101300.0,0.04986393]
[1734181128455,0.25804481,101310.0,101300.0,1.54986393]
[1734181128867,0.14728754,101310.0,101300.0,1.54936393]
[1734181129163,0.20869781,101310.0,101300.0,0.04936393]
[1734181129363,0.20869781,101310.0,101300.0,0.12836393]
[1734181129564,0.20869781,101310.0,101300.0,1.62836393]
[1734181129766,0.20869781,101310.0,101300.0,1.62886393]
[1734181129961,0.20869781,101310.0,101300.0,0.12886393]
[1734181130358,0.25804681,101310.0,101300.0,0.12886393]
[1734181130669,0.20869781,101310.0,101300.0,0.12886393]
[1734181133863,0.20869781,101310.0,101300.0,0.12836393]
[1734181134461,0.25804681,101310.0,101300.0,0.12836393]
[1734181134861,0.43436573,101310.0,101300.0,0.12836393]
[1734181135362,0.25804681,101310.0,101300.0,0.12836393]
[1734181136070,0.61884681,101310.0,101300.0,1.193e-05]
[1734181136273,0.73156456,101310.0,101300.0,1.193e-05]
[1734181137465,0.79297483,101310.0,101300.0,1.193e-05]
[1734181137681,0.83417483,101310.0,101300.0,1.193e-05]
[1734181137865,0.86356132,101310.0,101300.0,1.193e-05]
[1734181138164,1.16356132,101310.0,101300.0,1.193e-05]
[1734181138971,0.86356132,101310.0,101300.0,1.193e-05]